bitfinex-derivatives/quotes_BTCF0:USTF0_20241218
["timestamp","ask_amount","ask_price","bid_price","bid_amount"]
[1734542143946,1.29952721,104300.0,104290.0,0.3745135]
[1734542144159,1.29952721,104300.0,104290.0,0.4224635]
[1734542145065,1.29952721,104300.0,104290.0,0.51082842]
[1734542145357,1.10998221,104300.0,104290.0,0.51082842]
[1734542145562,1.10998221,104300.0,104290.0,0.65952842]
[1734542148657,1.10948221,104300.0,104290.0,0.65952842]
[1734542149052,1.10948221,104300.0,104290.0,2.15952842]
[1734542150858,1.10007408,104300.0,104290.0,2.15952842]
[1734542154965,1.10007408,104300.0,104290.0,0.65952842]
[1734542155470,1.10007408,104300.0,104290.0,2.15952842]
[1734542157970,0.73927408,104300.0,104290.0,2.52032842]
[1734542158266,0.31447055,104320.0,104310.0,0.047941]
[1734542158475,0.31447055,104320.0,104310.0,0.85790592]
[1734542158655,0.31497055,104320.0,104310.0,0.85790592]
[1734542158861,0.14346922,104320.0,104310.0,1.00700592]
[1734542159072,0.14357096,104320.0,104310.0,1.09537084]
[1734542159271,0.14357096,104320.0,104310.0,1.10908434]
[1734542159773,0.14307096,104320.0,104310.0,1.10908434]
[1734542160473,0.00010174,104320.0,104310.0,1.10908434]
[1734542160673,0.00060174,104320.0,104310.0,1.02071942]
[1734542161072,0.00060174,104320.0,104310.0,2.52071942]
[1734542161663,0.00010174,104320.0,104310.0,2.52071942]
[1734542161863,0.13640266,104320.0,104310.0,0.90578179]
[1734542162068,0.34253774,104320.0,104310.0,0.90578179]
[1734542162679,0.79220266,104320.0,104310.0,0.18418179]
[1734542162880,0.87533907,104320.0,104310.0,0.0137135]
[1734542163269,0.96370399,104320.0,104310.0,0.0137135]
[1734542163679,0.96320399,104320.0,104310.0,0.0137135]
[1734542163873,0.047945,104300.0,104290.0,0.21841629]
[1734542164073,0.047945,104300.0,104290.0,0.047948]
[1734542164074,0.408745,104300.0,104290.0,0.047948]
[1734542164287,0.408745,104300.0,104290.0,0.13631292]
[1734542164486,0.408745,104300.0,104290.0,0.047948]
[1734542165590,0.58087423,104300.0,104290.0,0.047948]
[1734542166896,0.66923915,104300.0,104280.0,1.98484688]
[1734542167099,0.3608,104290.0,104280.0,1.69614688]
[1734542167390,0.40875,104290.0,104280.0,1.69614688]
[1734542167593,0.49711492,104290.0,104280.0,0.00059488]
[1734542167782,0.74841492,104290.0,104280.0,0.00059488]
[1734542167986,0.89185214,104290.0,104280.0,0.00059488]
[1734542168379,1.19185214,104290.0,104280.0,0.00059488]
[1734542168585,1.19185214,104290.0,104280.0,9.488e-05]
[1734542169585,1.19185214,104290.0,104280.0,0.00059488]
[1734542169988,1.19185214,104290.0,104270.0,0.17046829]
[1734542170182,0.49711992,104280.0,104270.0,0.17046829]
[1734542170688,0.49711992,104280.0,104260.0,0.17190683]
[1734542170689,0.047959,104270.0,104260.0,0.17190683]
[1734542170994,0.49712392,104270.0,104260.0,0.17190683]
[1734542171390,0.408759,104270.0,104260.0,0.17190683]
[1734542171791,0.40885466,104270.0,104260.0,0.21987083]
[1734542172294,0.40885466,104270.0,104260.0,0.04940254]
[1734542172485,0.49721958,104270.0,104260.0,0.00143854]
[1734542172686,0.40885466,104270.0,104260.0,0.04940254]
[1734542173088,0.49721958,104270.0,104260.0,0.00143854]
[1734542174300,0.79721958,104270.0,104260.0,0.00143854]
[1734542174894,0.047968,104260.0,104240.0,0.50885819]
[1734542175094,0.3608,104250.0,104240.0,0.50885819]
[1734542175294,0.408768,104250.0,104240.0,0.50885819]
[1734542175690,0.49713292,104250.0,104240.0,0.46088919]
[1734542175990,0.408768,104250.0,104240.0,0.1507209]
[1734542176598,0.409768,104250.0,104240.0,0.1517209]
[1734542176804,0.49813292,104250.0,104240.0,0.1537209]
[1734542177289,0.409768,104250.0,104240.0,0.2016939]
[1734542178587,0.001,104250.0,104240.0,0.65085882]
[1734542179002,0.001,104250.0,104240.0,0.5624939]
[1734542179195,0.001,104250.0,104240.0,2.0624939]
[1734542179593,0.001,104250.0,104240.0,2.0629939]
[1734542180396,0.001,104250.0,104240.0,2.15135882]
[1734542181287,0.53879195,104270.0,104260.0,0.047964]
[1734542181688,0.42424388,104270.0,104260.0,0.047964]
[1734542182202,0.37628188,104270.0,104260.0,0.047964]
[1734542182504,0.37628188,104270.0,104260.0,0.199564]
[1734542183996,0.37628188,104270.0,104260.0,0.347364]
[1734542184597,0.42424088,104270.0,104260.0,0.347364]
[1734542185005,0.5126058,104270.0,104260.0,0.347364]
[1734542188095,0.5126058,104270.0,104260.0,0.2994]
[1734542188299,0.4646468,104270.0,104260.0,0.347364]
[1734542189005,0.5126058,104270.0,104260.0,0.347364]
[1734542189504,0.37628188,104270.0,104260.0,0.347364]
[1734542191100,0.01548188,104270.0,104260.0,0.708164]
[1734542192098,0.13002995,104270.0,104260.0,0.708164]
[1734542193607,0.01548188,104270.0,104260.0,0.708164]
[1734542193800,0.1038468,104270.0,104260.0,0.347364]
[1734542194000,0.01548188,104270.0,104260.0,0.347364]
[1734542194805,0.13002995,104270.0,104260.0,0.347364]
[1734542195003,0.11464373,104270.0,104260.0,0.79652892]
[1734542195304,0.50407579,104280.0,104270.0,0.047959]
[1734542195506,0.14327579,104280.0,104270.0,0.548959]
[1734542196200,8.655e-05,104280.0,104270.0,0.548959]
[1734542196798,8.655e-05,104280.0,104270.0,0.188159]
[1734542197201,8.655e-05,104280.0,104270.0,0.35862729]
[1734542197907,0.49720647,104280.0,104270.0,0.35862729]
[1734542198499,0.64048226,104280.0,104270.0,0.35862729]
[1734542199701,0.59252726,104280.0,104270.0,0.35862729]
[1734542199907,0.50416234,104280.0,104270.0,0.188159]
[1734542200303,0.14336234,104280.0,104270.0,0.188159]
[1734542201803,0.50416234,104280.0,104270.0,0.188159]
[1734542203610,0.64048226,104280.0,104270.0,0.1402]
[1734542204698,0.64048226,104280.0,104260.0,0.74525099]
[1734542204699,0.047959,104270.0,104260.0,0.51782829]
[1734542204909,0.49712392,104270.0,104260.0,0.31826829]
[1734542206308,0.64039971,104270.0,104260.0,0.1478]
[1734542207812,0.66925315,104270.0,104260.0,0.1478]
[1734542208817,0.66925315,104270.0,104260.0,0.195764]
[1734542209715,0.58088823,104270.0,104260.0,0.195764]
[1734542209916,0.17212923,104270.0,104260.0,0.28412892]
[1734542210111,0.17212923,104270.0,104260.0,0.78662892]
[1734542210800,0.20041682,104280.0,104260.0,0.83459292]
[1734542211002,0.20041682,104280.0,104270.0,0.13632392]
[1734542211306,0.14366965,104280.0,104270.0,0.047959]
[1734542212507,8.655e-05,104280.0,104270.0,0.44631343]
[1734542214317,8.655e-05,104280.0,104270.0,0.59861343]
[1734542216009,8.655e-05,104280.0,104270.0,0.6119899]
[1734542216406,8.655e-05,104280.0,104270.0,0.3845672]
[1734542217214,0.36088655,104280.0,104270.0,0.37119073]
[1734542217511,0.49720647,104280.0,104270.0,0.37119073]
[1734542217811,0.36088655,104280.0,104270.0,0.37119073]
[1734542218317,0.50446965,104280.0,104270.0,0.200259]
[1734542219831,0.50446965,104280.0,104270.0,0.37119073]
[1734542220224,0.55242465,104280.0,104270.0,0.37119073]
[1734542220612,0.55242465,104280.0,104270.0,0.21889073]
[1734542221419,0.50446965,104280.0,104270.0,0.21889073]
[1734542221720,0.14366965,104280.0,104270.0,0.30725565]
[1734542221920,0.14366965,104280.0,104270.0,0.36239073]
[1734542222417,0.50446965,104280.0,104270.0,0.191459]
[1734542223121,0.36088655,104280.0,104270.0,0.36239073]
[1734542224216,0.36088655,104280.0,104270.0,0.81155565]
[1734542224217,8.655e-05,104280.0,104270.0,0.81155565]
[1734542224414,0.1435831,104290.0,104280.0,0.047955]
[1734542224616,0.1435831,104290.0,104280.0,0.73598484]
[1734542225016,0.1435831,104290.0,104280.0,0.64761992]
[1734542225410,8.726e-05,104290.0,104280.0,1.04597435]
[1734542226322,8.726e-05,104290.0,104280.0,2.54697435]
[1734542226712,0.1440831,104300.0,104290.0,0.04795]
[1734542226916,0.0005,104300.0,104290.0,0.79021492]
[1734542227627,0.00059422,104300.0,104290.0,0.79021492]
[1734542227828,9.422e-05,104300.0,104290.0,0.79021492]
[1734542228520,9.422e-05,104300.0,104290.0,0.96055339]
[1734542228725,0.00059422,104300.0,104290.0,0.96055339]
[1734542228918,0.1435831,104310.0,104300.0,0.047945]
[1734542229123,0.1435831,104310.0,104300.0,0.64520992]
[1734542229519,0.2015201,104320.0,104310.0,0.047941]
[1734542229724,0.21461617,104320.0,104310.0,0.047941]
[1734542229924,0.21471307,104320.0,104310.0,0.200341]
[1734542230325,0.16677607,104320.0,104310.0,0.200341]
[1734542230922,0.02319297,104320.0,104310.0,0.200341]
[1734542231328,0.02319297,104320.0,104310.0,0.28870592]
[1734542234630,0.0100969,104320.0,104310.0,0.73787084]
[1734542235431,0.0100969,104320.0,104310.0,0.64950592]
[1734542238715,0.0100969,104320.0,104310.0,2.14950592]
[1734542238918,0.0100969,104320.0,104310.0,2.23797695]
[1734542239734,0.0105969,104320.0,104310.0,2.23797695]
[1734542239925,0.0105969,104320.0,104310.0,2.14961203]
[1734542240233,0.0105969,104320.0,104310.0,2.23797695]
[1734542240635,0.0105969,104320.0,104310.0,2.14961203]
[1734542241542,0.0105969,104320.0,104310.0,2.3199505]
[1734542241831,0.0585329,104320.0,104310.0,2.37298558]
[1734542242033,0.0585329,104320.0,104310.0,0.51218558]
[1734542242236,0.0105969,104320.0,104310.0,0.6005505]
[1734542242433,0.0105969,104320.0,104310.0,0.43021203]
[1734542243031,0.0105969,104320.0,104310.0,0.79101203]
[1734542243233,0.0105969,104320.0,104310.0,0.87937695]
[1734542243445,0.0105969,104320.0,104310.0,0.79101203]
[1734542244436,0.0105969,104320.0,104310.0,0.70264711]
[1734542244635,0.0105969,104320.0,104310.0,0.79101203]
[1734542247841,0.0100969,104320.0,104310.0,0.87937695]
[1734542248038,0.0100969,104320.0,104310.0,2.37937695]
[1734542248234,0.08580635,104330.0,104310.0,2.37937695]
[1734542248446,0.08580635,104330.0,104320.0,0.64600092]
[1734542248937,0.0005,104330.0,104320.0,0.64600092]
[1734542249239,0.00058834,104330.0,104320.0,0.64600092]
[1734542249739,0.08580635,104340.0,104330.0,0.047932]
[1734542249932,0.08580635,104340.0,104330.0,0.79619692]
[1734542250433,0.08580635,104340.0,104330.0,2.29619692]
[1734542250633,0.08588355,104340.0,104330.0,2.29619692]
[1734542252041,0.08588355,104340.0,104330.0,0.347032]
[1734542252442,0.44668355,104340.0,104330.0,0.047932]
[1734542252942,0.49716912,104340.0,104330.0,0.047932]
[1734542253145,0.64346912,104340.0,104330.0,0.047932]
[1734542253734,0.64396912,104340.0,104330.0,0.047932]
[1734542254644,0.5076772,104340.0,104330.0,0.047932]
[1734542254848,0.6512603,104340.0,104330.0,0.047932]
[1734542255437,0.78755222,104340.0,104330.0,0.047932]
[1734542258245,0.95934955,104340.0,104330.0,0.047932]
[1734542259543,0.81576645,104340.0,104330.0,0.047932]
[1734542260246,0.66946645,104340.0,104330.0,0.047932]
[1734542260751,0.66896645,104340.0,104330.0,0.047932]
[1734542262554,0.71689745,104340.0,104320.0,0.52497447]
[1734542262846,0.71689745,104340.0,104320.0,0.57290747]
[1734542263055,0.66896645,104340.0,104320.0,0.57290747]
[1734542263250,0.66896645,104340.0,104320.0,0.52497147]
[1734542263448,0.66896645,104340.0,104330.0,0.047932]
[1734542264865,0.66896645,104340.0,104320.0,0.47703847]
[1734542265155,0.49709692,104330.0,104320.0,0.36717147]
[1734542265551,0.49709692,104330.0,104320.0,0.31923847]
[1734542265751,0.55232558,104330.0,104320.0,0.36717447]
[1734542266060,0.14359358,104330.0,104320.0,0.36717447]
[1734542266357,0.14359358,104330.0,104320.0,0.52377447]
[1734542266559,0.50439358,104330.0,104320.0,0.52377447]
[1734542266760,0.14359358,104330.0,104320.0,0.52377447]
[1734542267162,0.31539091,104330.0,104320.0,0.52377447]
[1734542267352,0.31539091,104330.0,104320.0,0.97293939]
[1734542267958,0.67619091,104330.0,104320.0,0.52377447]
[1734542268259,0.61927416,104330.0,104320.0,0.75119717]
[1734542269060,0.25847416,104330.0,104320.0,0.75119717]
[1734542269562,0.14359358,104330.0,104320.0,0.52377447]
[1734542270657,0.14359358,104330.0,104320.0,0.75119717]
[1734542271761,0.14359358,104330.0,104320.0,0.52377447]
[1734542272956,0.14359358,104330.0,104320.0,2.25119717]
[1734542272957,0.25847676,104330.0,104320.0,2.25119717]
[1734542273653,0.25847676,104330.0,104320.0,2.70036209]
[1734542273854,0.17187453,104340.0,104320.0,2.74829809]
[1734542274059,0.17187453,104340.0,104330.0,0.49709692]
[1734542274264,0.17187453,104340.0,104330.0,0.65529692]
[1734542275854,7.72e-05,104340.0,104330.0,0.88271962]
[1734542278161,0.08620226,104340.0,104330.0,0.96466094]
[1734542279664,0.08620226,104340.0,104330.0,1.05302586]
[1734542280959,0.08620226,104340.0,104330.0,0.88271962]
[1734542281765,0.08620226,104340.0,104330.0,2.38271962]
[1734542281966,0.08620226,104340.0,104330.0,2.85032377]
[1734542282266,0.01228465,104350.0,104340.0,0.047927]
[1734542282462,0.01228465,104350.0,104340.0,0.78589192]
[1734542283165,0.0123669,104350.0,104340.0,0.78589192]
[1734542283369,0.0123669,104350.0,104340.0,1.01269644]
[1734542283574,0.0123669,104350.0,104340.0,0.92433152]
[1734542284369,0.0123669,104350.0,104340.0,1.09440555]
[1734542284762,0.0118669,104350.0,104340.0,1.09440555]
[1734542286773,0.50895382,104350.0,104340.0,0.39687855]
[1734542286972,0.80365382,104350.0,104340.0,0.17007403]
[1734542287173,0.96105382,104350.0,104340.0,0.17007403]
[1734542288172,0.96105382,104350.0,104330.0,0.37620603]
[1734542288357,0.3608,104340.0,104330.0,0.37620603]
[1734542289570,0.49709192,104340.0,104330.0,0.37620603]
[1734542289763,0.49709192,104340.0,104330.0,0.21800603]
[1734542290162,0.4639669,104350.0,104340.0,0.047927]
[1734542290376,0.3150669,104350.0,104340.0,0.408727]
[1734542290664,0.6758669,104350.0,104340.0,0.047927]
[1734542292976,0.81215382,104350.0,104340.0,0.047927]
[1734542293575,0.76423182,104350.0,104340.0,0.047927]
[1734542296173,0.81215382,104350.0,104330.0,1.89687855]
[1734542296386,0.96315382,104350.0,104330.0,0.44480755]
[1734542296582,0.8268669,104350.0,104340.0,0.047927]
[1734542297687,0.91523182,104350.0,104340.0,0.047927]
[1734542298088,0.8268669,104350.0,104340.0,0.047927]
[1734542298992,0.5300669,104350.0,104340.0,0.047927]
[1734542299579,0.5300669,104350.0,104340.0,0.21800103]
[1734542299886,0.66635382,104350.0,104340.0,0.21800103]
[1734542300382,0.8762889,104350.0,104340.0,0.21800103]
[1734542301289,0.8283669,104350.0,104340.0,0.21800103]
[1734542302689,0.8762889,104350.0,104340.0,0.21800103]
[1734542303289,0.96465382,104350.0,104340.0,0.047927]
[1734542303593,0.8762889,104350.0,104340.0,0.047927]
[1734542303899,0.8283669,104350.0,104340.0,0.047927]
[1734542304582,0.8762889,104350.0,104340.0,0.047927]
[1734542304892,1.28001119,104350.0,104340.0,0.17007403]
[1734542305881,1.28001119,104350.0,104340.0,0.21800103]
[1734542306077,1.28001119,104350.0,104340.0,0.047927]
[1734542306782,0.047927,104340.0,104330.0,0.44480655]
[1734542307089,0.408727,104340.0,104330.0,0.44480655]
[1734542307592,0.49709192,104340.0,104330.0,0.44480655]
[1734542307785,0.408727,104340.0,104330.0,0.44480655]
[1734542308183,0.408727,104340.0,104330.0,0.21800203]
[1734542308184,0.55228704,104340.0,104330.0,0.21800203]
[1734542310187,0.50436004,104340.0,104330.0,0.21800203]
[1734542311090,0.3608,104340.0,104330.0,0.27473252]
[1734542311886,1.01984894,104350.0,104340.0,0.047927]
[1734542313004,1.01984894,104350.0,104340.0,0.21854391]
[1734542314187,1.04808623,104350.0,104340.0,0.047927]
[1734542315986,0.54446423,104350.0,104340.0,0.047927]
[1734542316286,0.54446423,104350.0,104340.0,0.212427]
[1734542316287,0.18366423,104350.0,104340.0,0.212427]
[1734542316493,0.18366423,104350.0,104340.0,0.523027]
[1734542317405,0.15550384,104350.0,104340.0,0.92044843]
[1734542317704,0.51630384,104350.0,104340.0,0.92044843]
[1734542317900,0.15550384,104350.0,104340.0,0.92044843]
[1734542318501,0.51630384,104350.0,104340.0,0.92044843]
[1734542318802,0.15550384,104350.0,104340.0,0.92044843]
[1734542319701,0.15550384,104350.0,104340.0,0.74983152]
[1734542321801,0.14371919,104350.0,104340.0,1.19899644]
[1734542322605,0.14371919,104350.0,104340.0,1.36968386]
[1734542322801,0.14371919,104350.0,104340.0,2.86968386]
[1734542323705,8.225e-05,104350.0,104340.0,2.69899644]
[1734542324408,8.225e-05,104350.0,104340.0,1.19899644]
[1734542324809,8.225e-05,104350.0,104340.0,2.69899644]
[1734542325216,0.13636917,104350.0,104340.0,2.24983152]
[1734542325404,0.13636917,104350.0,104340.0,0.74983152]
[1734542325607,0.49716917,104350.0,104340.0,0.74983152]
[1734542325996,0.36088225,104350.0,104340.0,0.74983152]
[1734542326308,0.36088225,104350.0,104340.0,0.59953152]
[1734542326507,0.49716917,104350.0,104340.0,0.43923152]
[1734542326712,0.64080611,104350.0,104340.0,0.60994764]
[1734542327012,0.79530611,104350.0,104340.0,0.60994764]
[1734542327212,0.79530611,104350.0,104340.0,0.56202064]
[1734542327511,0.88367103,104350.0,104340.0,0.39752064]
[1734542327707,1.39460611,104350.0,104340.0,0.39752064]
[1734542328104,1.48297103,104350.0,104340.0,0.39752064]
[1734542328311,0.047927,104340.0,104330.0,0.2253533]
[1734542328514,0.047932,104330.0,104320.0,0.19802236]
[1734542328700,0.49709692,104330.0,104320.0,0.19802236]
[1734542328905,0.79709692,104330.0,104320.0,0.19852236]
[1734542329505,0.96889425,104330.0,104320.0,0.0005]
[1734542330517,0.79709692,104330.0,104320.0,0.0005]
[1734542331102,0.3608,104330.0,104320.0,0.0005]
[1734542331307,0.3608,104330.0,104320.0,0.048436]
[1734542331507,0.44916492,104330.0,104320.0,0.048436]
[1734542331712,0.46038096,104330.0,104320.0,0.048436]
[1734542332210,0.86911296,104330.0,104320.0,0.0005]
[1734542333218,1.1843674,104330.0,104320.0,0.0005]
[1734542334506,1.3422674,104330.0,104320.0,0.0005]
[1734542335206,1.17031043,104330.0,104320.0,0.0005]
[1734542336212,1.01241043,104330.0,104320.0,0.0005]
[1734542337312,0.92404551,104330.0,104320.0,0.0005]
[1734542338718,0.94291024,104330.0,104320.0,0.0005]
[1734542339017,1.11486721,104330.0,104320.0,0.0005]
[1734542339912,0.94291024,104330.0,104320.0,0.048436]
[1734542340113,0.94291024,104330.0,104320.0,0.197636]
[1734542340313,0.89497824,104330.0,104320.0,0.197636]
[1734542340716,0.53417824,104330.0,104320.0,0.197636]
[1734542341020,0.53417824,104330.0,104320.0,0.350336]
[1734542341225,0.58211024,104330.0,104320.0,0.350336]
[1734542341707,0.51531351,104330.0,104320.0,0.43870092]
[1734542342119,0.51531351,104330.0,104320.0,0.350336]
[1734542342317,0.48652093,104330.0,104320.0,0.350336]
[1734542344223,0.48652093,104330.0,104320.0,0.498936]
[1734542346617,0.11450489,104330.0,104320.0,0.94810092]
[1734542347030,0.56366981,104330.0,104320.0,0.2978]
[1734542347222,0.047936,104320.0,104300.0,0.1523]
[1734542347517,0.713837,104320.0,104300.0,0.200245]
[1734542347724,0.74770489,104330.0,104310.0,0.047941]
[1734542347922,0.39829598,104330.0,104320.0,0.047936]
[1734542348115,0.39829598,104330.0,104320.0,0.515036]
[1734542348318,0.86459535,104330.0,104320.0,0.515036]
[1734542348519,0.86459535,104330.0,104320.0,0.4671]
[1734542349318,0.95030802,104330.0,104320.0,0.4671]
[1734542349718,1.03867294,104330.0,104320.0,0.4671]
[1734542349920,0.047936,104320.0,104310.0,0.0005]
[1734542350225,0.49710092,104320.0,104310.0,0.0005]
[1734542350930,0.49710092,104320.0,104300.0,0.5059256]
[1734542351227,0.3608,104310.0,104300.0,0.5059256]
[1734542352323,0.70686762,104320.0,104310.0,0.047941]
[1734542352821,0.2577027,104320.0,104310.0,0.047941]
[1734542353028,0.2577027,104320.0,104310.0,0.048441]
[1734542353216,0.2577027,104320.0,104310.0,0.13680592]
[1734542353423,0.2577027,104320.0,104310.0,0.49760592]
[1734542353720,0.17207226,104330.0,104310.0,0.49760592]
[1734542353914,0.17207226,104330.0,104320.0,0.557736]
[1734542354120,0.17207226,104330.0,104320.0,0.64610092]
[1734542354422,0.17207226,104330.0,104320.0,0.196936]
[1734542355226,0.00011529,104330.0,104320.0,0.196936]
[1734542357023,0.00011529,104330.0,104320.0,0.353236]
[1734542357219,0.00011529,104330.0,104320.0,1.853236]
[1734542357928,0.00011529,104330.0,104320.0,1.86481377]
[1734542358639,0.00011529,104330.0,104320.0,2.22561377]
[1734542359130,0.00011529,104330.0,104320.0,1.86481377]
[1734542359330,0.00011529,104330.0,104320.0,0.353236]
[1734542361423,0.44928021,104330.0,104320.0,0.353236]
[1734542361738,0.49721221,104330.0,104320.0,0.196936]
[1734542362121,0.36091529,104330.0,104320.0,0.196936]
[1734542362324,0.49721221,104330.0,104310.0,0.21034]
[1734542362625,0.49710092,104320.0,104310.0,0.04794]
[1734542364330,0.96905789,104320.0,104310.0,0.002]
[1734542364524,1.13055789,104320.0,104310.0,0.002]
[1734542365529,0.83055789,104320.0,104310.0,0.002]
[1734542368233,1.13055789,104320.0,104310.0,0.002]
[1734542368422,0.83055789,104320.0,104310.0,0.002]
[1734542368630,0.65860092,104320.0,104310.0,0.002]
[1734542368936,0.3608,104320.0,104310.0,0.002]
[1734542369130,0.61628974,104330.0,104320.0,0.047936]
[1734542369334,0.34388974,104330.0,104320.0,0.047936]
[1734542369536,0.34388974,104330.0,104320.0,1.710636]
[1734542369537,0.18998974,104330.0,104320.0,1.710636]
[1734542369928,0.17210443,104330.0,104320.0,1.710636]
[1734542370133,0.17210443,104330.0,104320.0,2.15980092]
[1734542370327,0.20083027,104340.0,104330.0,0.047932]
[1734542370532,0.20083027,104340.0,104330.0,0.49709692]
[1734542370933,0.20033027,104340.0,104330.0,0.49709692]
[1734542371337,0.20042963,104340.0,104330.0,0.49709692]
[1734542371634,9.936e-05,104340.0,104330.0,0.49709692]
[1734542371829,9.936e-05,104340.0,104330.0,0.79709692]
[1734542371830,3.6e-07,104340.0,104330.0,0.79709692]
[1734542372436,3.6e-07,104340.0,104330.0,0.708732]
[1734542372829,0.3608,104370.0,104360.0,0.047918]
[1734542373130,0.5146,104380.0,104370.0,0.047913]
[1734542373435,0.60306309,104380.0,104370.0,0.047913]
[1734542373739,0.24226309,104380.0,104370.0,0.047913]
[1734542373937,0.26132375,104380.0,104370.0,0.047913]
[1734542374132,9.817e-05,104380.0,104370.0,0.047913]
[1734542374436,0.45876309,104390.0,104380.0,0.047909]
[1734542375225,0.37039817,104390.0,104380.0,0.047909]
[1734542375543,0.45888107,104390.0,104380.0,0.047909]
[1734542378733,0.45888107,104390.0,104380.0,0.05941278]
[1734542382542,0.50678507,104390.0,104380.0,0.01150378]
[1734542382846,0.50678507,104390.0,104370.0,0.047911]
[1734542383035,0.44966492,104380.0,104370.0,0.047911]
[1734542384646,0.3613,104380.0,104370.0,0.047911]
[1734542388747,0.37288435,104380.0,104370.0,0.047911]
[1734542392038,0.66715827,104380.0,104370.0,0.047911]
[1734542393448,0.61924927,104380.0,104370.0,0.047911]
[1734542393745,0.37288435,104380.0,104370.0,0.047911]
[1734542393948,0.37238435,104380.0,104370.0,0.047911]
[1734542395736,0.37238435,104380.0,104360.0,0.05920209]
[1734542395737,0.46074927,104380.0,104360.0,0.05920409]
[1734542395937,0.49707792,104370.0,104360.0,0.05920409]
[1734542396159,0.558313,104370.0,104360.0,0.05920409]
[1734542396348,0.5104,104370.0,104360.0,0.05920409]
[1734542397450,0.558313,104370.0,104360.0,0.05920409]
[1734542397645,0.95137792,104370.0,104360.0,0.01128809]
[1734542397840,0.047918,104360.0,104350.0,0.0005]
[1734542398046,0.408718,104360.0,104340.0,1.75348546]
[1734542398252,0.408718,104360.0,104340.0,1.70556146]
[1734542398947,0.408718,104360.0,104350.0,0.0005]
[1734542400046,0.55126576,104360.0,104340.0,0.21637425]
[1734542400346,0.55126576,104360.0,104340.0,0.26429825]
[1734542400948,0.55126576,104360.0,104350.0,0.0005]
[1734542401355,0.55126576,104360.0,104350.0,0.048422]
[1734542401656,0.6742909,104360.0,104350.0,0.048422]
[1734542401852,0.3134909,104360.0,104350.0,0.49758692]
[1734542402045,0.3134909,104360.0,104350.0,0.49708692]
[1734542402758,0.14254776,104360.0,104350.0,0.49708692]
[1734542402955,0.14254776,104360.0,104350.0,0.49758692]
[1734542404054,0.14254776,104360.0,104350.0,0.49708692]
[1734542404761,0.14254776,104360.0,104350.0,0.13628692]
[1734542405058,0.14254776,104360.0,104350.0,0.49758692]
[1734542405558,0.14254776,104360.0,104350.0,1.99758692]
[1734542406458,0.08604628,104360.0,104350.0,2.22324184]
[1734542408157,0.08604628,104360.0,104350.0,0.72324184]
[1734542408361,0.08604628,104360.0,104350.0,0.63487692]
[1734542409963,0.08604628,104360.0,104350.0,0.63437692]
[1734542411255,0.08604628,104360.0,104350.0,0.27357692]
[1734542414857,0.5352112,104360.0,104350.0,0.27357692]
[1734542415064,0.7346292,104360.0,104350.0,0.22565492]
[1734542415368,0.8494027,104360.0,104350.0,0.22565492]
[1734542416261,0.84948848,104360.0,104350.0,0.22565492]
[1734542416565,0.9621596,104360.0,104340.0,0.01225025]
[1734542416871,0.49708692,104350.0,104340.0,0.01225025]
[1734542417071,0.49708692,104350.0,104340.0,0.01275025]
[1734542417968,0.49708692,104350.0,104340.0,0.01225025]
[1734542418172,0.63963468,104350.0,104340.0,0.01225025]
[1734542419060,0.63963468,104350.0,104340.0,0.01275025]
[1734542420368,0.63963468,104350.0,104340.0,0.00193746]
[1734542420573,0.63963468,104350.0,104340.0,0.0005]
[1734542420771,0.91203468,104350.0,104340.0,0.0005]
[1734542420967,0.91203468,104350.0,104320.0,0.58678892]
[1734542421170,0.3608,104330.0,104320.0,0.58678892]
[1734542422080,0.44679335,104330.0,104320.0,0.361134]
[1734542423580,0.44679335,104330.0,104320.0,0.364134]
[1734542424082,0.94389027,104330.0,104320.0,0.003]
[1734542424288,1.09889027,104330.0,104320.0,0.004]
[1734542424581,1.09889027,104330.0,104320.0,0.01515952]
[1734542424783,1.09889027,104330.0,104320.0,0.004]
[1734542424966,1.21354807,104330.0,104320.0,0.004]
[1734542425585,1.12518315,104330.0,104320.0,0.051936]
[1734542426194,0.92325115,104330.0,104320.0,0.051936]
[1734542427787,0.80859335,104330.0,104320.0,0.051936]
[1734542428085,0.80859335,104330.0,104320.0,0.052436]
[1734542428275,0.80859335,104330.0,104320.0,0.06363818]
[1734542428682,0.76545713,104330.0,104320.0,0.08574941]
[1734542428884,0.08699335,104330.0,104320.0,0.08574941]
[1734542429083,0.03307307,104330.0,104320.0,0.08524941]
[1734542429491,0.995538,104340.0,104320.0,0.09574477]
[1734542429675,0.97756337,104340.0,104320.0,0.09574477]
[1734542429880,0.70321245,104340.0,104320.0,0.09574477]
[1734542430084,0.56302172,104340.0,104320.0,0.25034077]
[1734542430386,0.56302172,104340.0,104320.0,0.25034277]
[1734542430588,0.56302172,104340.0,104320.0,0.24834277]
[1734542430774,0.56302172,104340.0,104320.0,0.22623154]
[1734542430980,0.56302172,104340.0,104320.0,0.22673154]
[1734542431291,0.56302172,104340.0,104320.0,0.22672954]
[1734542431481,0.56302172,104340.0,104330.0,0.047932]
[1734542431681,0.56302172,104340.0,104330.0,0.05842736]
[1734542432676,0.56302172,104340.0,104330.0,0.06142736]
[1734542432979,0.56302172,104340.0,104330.0,0.01349536]
[1734542435492,0.50830842,104340.0,104330.0,0.01349536]
[1734542435794,0.29780664,104340.0,104330.0,0.01349536]
[1734542435986,0.15584626,104340.0,104330.0,0.01349536]
[1734542436677,0.10791926,104340.0,104330.0,0.050932]
[1734542437686,0.15584626,104340.0,104330.0,0.003]
[1734542438092,0.16662646,104340.0,104330.0,0.003]
[1734542439989,0.11869946,104340.0,104330.0,0.050932]
[1734542440190,0.03033454,104340.0,104330.0,0.050932]
[1734542440496,0.01955434,104340.0,104330.0,0.199132]
[1734542443495,0.1621021,104340.0,104330.0,0.199132]
[1734542443897,0.29839402,104340.0,104330.0,0.199132]
[1734542444202,0.65919402,104340.0,104330.0,0.196132]
[1734542444398,0.65919402,104340.0,104330.0,0.1482]
[1734542444596,0.047932,104330.0,104320.0,0.16530218]
[1734542444797,0.047936,104320.0,104310.0,0.22565492]
[1734542444997,0.65020092,104320.0,104310.0,0.22615492]
[1734542445298,0.73856584,104320.0,104310.0,0.22615492]
[1734542445605,0.65020092,104320.0,104310.0,0.22615492]
[1734542446103,0.047941,104310.0,104300.0,8.26e-05]
[1734542446304,0.48898906,104310.0,104300.0,8.26e-05]
[1734542447394,0.6324386,104310.0,104300.0,8.26e-05]
[1734542447706,0.50524954,104310.0,104300.0,0.0500276]
[1734542448496,0.50524954,104310.0,104300.0,0.0530276]
[1734542449290,0.50524954,104310.0,104300.0,0.0050826]
[1734542449495,0.6334386,104310.0,104300.0,0.0050826]
[1734542449805,0.7396976,104310.0,104300.0,0.0530276]
[1734542450101,0.7396976,104310.0,104300.0,0.0535276]
[1734542452199,0.86788666,104310.0,104300.0,0.0055826]